[Event "1000GM Schev-G6 March 2024"]
[Site "Santa Clara"]
[Date "2024.03.10"]
[Round "2.4"]
[White "Zhuge, Katherine"]
[Black "Garduno Huerta, Joshua Emiliano"]
[Result "0-1"]
[ECO "C99"]
[WhiteElo "1798"]
[BlackElo "1941"]
[Annotator "RC"]
[PlyCount "130"]
[EventDate "2024.03.06"]
[EventType "schev"]
[EventCountry "USA"]
[SourceTitle "playchess.com"]
[Source "ChessBase"]
[SourceQuality "1"]
[TimeControl "5400+30"]

1. e4 {[%emt 0:00:02]} e5 {[%emt 0:00:19]} 2. Nf3 {[%emt 0:00:07]} Nc6 {[%emt 0:01:23]} 3. Bb5 {[%emt 0:00:09]} a6 {[%emt 0:00:06]} 4. Ba4 {[%emt 0:00:05]} Nf6 {[%emt 0:00:06]} 5. O-O {[%emt 0:00:04]} Be7 {[%emt 0:00:05]} 6. Re1 {[%emt 0:00:03]} b5 {[%emt 0:00:09]} 7. Bb3 {[%emt 0:00:05]} d6 {[%emt 0:00:04]} 8. c3 {[%emt 0:00:09]} O-O {[%emt 0:00:14]} 9. h3 {[%emt 0:00:06]} Na5 {[%emt 0:00:05]} 10. Bc2 {[%emt 0:00:07]} c5 {[%emt 0:00:04]} 11. d4 {[%emt 0:00:05]} Qc7 {[%emt 0:00:06]} 12. Nbd2 {[%emt 0:00:19]} cxd4 {[%emt 0:00:08]} 13. cxd4 {[%emt 0:00:09]} Bb7 {[%emt 0:03:10]} 14. Nf1 {[%emt 0:07:39]} Rac8 {[%emt 0:00:39]} 15. Bd3 {[%emt 0:01:37]} d5 {[%emt 0:00:19]} 16. dxe5 {[%emt 0:03:24]} Nxe4 {[%emt 0:00:27]} 17. Bf4 {[%emt 0:11:42]} Nc4 {[%emt 0:07:43]} 18. Qe2 {[%emt 0:12:05]} Bc5 {[%emt 0:24:45]} 19. Bxe4 {[%emt 0:07:30]} dxe4 {[%emt 0:00:17]} 20. Ng5 {[%emt 0:00:11]} Bd4 {[%emt 0:09:18]} 21. Rab1 {[%emt 0:23:55]} Bxe5 {[%emt 0:02:51]} 22. Bxe5 {[%emt 0:31:57]} Qxe5 {[%emt 0:02:56]} 23. Nxe4 {[%emt 0:00:00]} Rce8 {[%emt 0:46:46]} 24. Nc3 {[%emt 0:00:00]} Qxe2 {[%emt 0:00:00]} 25. Rxe2 {[%emt 0:00:00]} Rxe2 {[%emt 0:00:00]} 26. Nxe2 {[%emt 0:00:00]} Be4 {[%emt 0:00:00]} 27. Rd1 {[%emt 0:00:00]} Nxb2 {[%emt 0:00:00]} 28. Rd6 {[%emt 0:00:00]} b4 {[%emt 0:00:00]} 29. Rd4 {[%emt 0:00:00]} Bd3 {[%emt 0:00:00]} 30. Nf4 {[%emt 0:00:00]} Bxf1 {[%emt 0:00:00]} 31. Kxf1 {[%emt 0:00:00]} a5 {[%emt 0:00:00]} 32. Nd5 {[%emt 0:00:00]} Ra8 {[%emt 0:00:00]} 33. Nb6 {[%emt 0:00:00]} Rb8 {[%emt 0:00:00]} 34. Nd7 {[%emt 0:00:00]} Rc8 {[%emt 0:00:00]} 35. Nb6 {[%emt 0:00:59]} Rb8 {[%emt 0:06:00]} 36. Nd7 {[%emt 0:00:17]} Re8 {[%emt 0:00:00]} 37. Nb6 {[%emt 0:02:55]} a4 {[%emt 0:00:00]} 38. Rxb4 {[%emt 0:01:27]} Nd3 {[%emt 0:00:00]} 39. Rb1 {[%emt 0:00:06]} Rb8 {[%emt 0:00:00]} 40. Rd1 {[%emt 0:01:08]} Nc5 {[%emt 0:00:00]} 41. Rd4 {[%emt 0:01:07]} Ne6 {[%emt 0:00:00]} 42. Rd6 {[%emt 0:00:14]} a3 {[%emt 0:00:37]} 43. Nc4 {[%emt 0:00:58]} Kf8 {[%emt 0:01:58]} 44. Nxa3 {[%emt 0:00:23]} Ra8 {[%emt 0:00:13]} 45. Rd3 {[%emt 0:00:26]} Nc5 {[%emt 0:00:21]} 46. Rc3 {[%emt 0:00:11]} Ne4 {[%emt 0:00:54]} 47. Re3 {[%emt 0:00:06]} Nd6 {[%emt 0:00:06]} 48. Ke2 {[%emt 0:00:23]} g6 {[%emt 0:00:29]} 49. Rd3 {[%emt 0:00:37]} Ke7 {[%emt 0:00:06]} 50. Re3+ {[%emt 0:00:11]} Kf6 {[%emt 0:00:10]} 51. Rd3 {[%emt 0:00:23]} Ke6 {[%emt 0:00:22]} 52. Kd2 {[%emt 0:00:16]} Rxa3 {[%emt 0:00:23]} 53. Rxa3 {[%emt 0:00:20]} Nc4+ {[%emt 0:00:01]} 54. Kc3 {[%emt 0:00:08]} Nxa3 {[%emt 0:00:05]} 55. Kb4 {[%emt 0:00:14]} Nc2+ {[%emt 0:00:14]} 56. Kc3 {[%emt 0:00:07]} Ne1 {[%emt 0:00:07]} 57. g3 {[%emt 0:00:15]} Nf3 {[%emt 0:00:10]} 58. Kd3 {[%emt 0:00:36]} Ne5+ {[%emt 0:00:16]} 59. Kd4 {[%emt 0:00:48]} Kd6 {[%emt 0:00:17]} 60. f4 {[%emt 0:00:21]} Nd7 {[%emt 0:00:35]} 61. g4 {[%emt 0:00:22]} f6 {[%emt 0:00:30]} 62. h4 {[%emt 0:00:45]} Nf8 {[%emt 0:00:22]} 63. f5 {[%emt 0:00:25]} gxf5 {[%emt 0:00:19]} 64. gxf5 {[%emt 0:00:06]} Nd7 {[%emt 0:00:36]} 65. a4 {[%emt 0:01:35]} Nc5 {[%emt 0:00:07]} 0-1

[Event "1000GM Schev-G6 March 2024"]
[Site "Santa Clara"]
[Date "2024.03.10"]
[Round "2.5"]
[White "Penagalapati, Anvitha"]
[Black "Monroy G., Nataly A."]
[Result "0-1"]
[ECO "B25"]
[WhiteElo "1642"]
[BlackElo "1925"]
[Annotator "RC"]
[PlyCount "62"]
[EventDate "2024.03.06"]
[EventType "schev"]
[EventCountry "USA"]
[SourceTitle "playchess.com"]
[Source "ChessBase"]
[SourceQuality "1"]
[TimeControl "5400+30"]

1. e4 {[%emt 0:00:03]} c5 {[%emt 0:01:57]} 2. Nc3 {[%emt 0:00:07]} g6 {[%emt 0:00:18]} 3. f4 {[%emt 0:00:16]} Bg7 {[%emt 0:00:47]} 4. Nf3 {[%emt 0:00:20]} d6 {[%emt 0:00:07]} 5. a4 {[%emt 0:03:00]} Nf6 {[%emt 0:00:45]} 6. g3 {[%emt 0:00:25]} Nc6 {[%emt 0:00:46]} 7. Bg2 {[%emt 0:00:16]} Rb8 {[%emt 0:00:45]} 8. O-O {[%emt 0:02:08]} O-O {[%emt 0:00:42]} 9. d3 {[%emt 0:03:08]} a6 {[%emt 0:00:43]} 10. h3 {[%emt 0:03:30]} b5 {[%emt 0:01:03]} 11. axb5 {[%emt 0:01:30]} axb5 {[%emt 0:00:05]} 12. g4 {[%emt 0:07:33]} b4 {[%emt 0:11:25]} 13. Ne2 {[%emt 0:01:03]} Bb7 {[%emt 0:00:19]} 14. Ng3 {[%emt 0:05:36]} Nd7 {[%emt 0:07:01]} 15. Qe1 {[%emt 0:05:17]} Nd4 {[%emt 0:03:39]} 16. Nxd4 {[%emt 0:01:05]} Bxd4+ {[%emt 0:00:41]} 17. Kh2 {[%emt 0:00:30]} Bg7 {[%emt 0:00:22]} 18. c3 {[%emt 0:03:15]} bxc3 {[%emt 0:01:27]} 19. bxc3 {[%emt 0:00:11]} Bc6 {[%emt 0:00:22]} 20. Qd2 {[%emt 0:05:38]} Rb3 {[%emt 0:04:06]} 21. d4 {[%emt 0:00:43]} e6 {[%emt 0:04:38]} 22. Ba3 {[%emt 0:02:48]} Qh4 {[%emt 0:02:08]} 23. Rfb1 {[%emt 0:08:51]} Rfb8 {[%emt 0:05:05]} 24. Rxb3 {[%emt 0:00:53]} Rxb3 {[%emt 0:00:05]} 25. Ne2 {[%emt 0:06:31]} Bb5 {[%emt 0:05:50]} 26. Nc1 {[%emt 0:00:35]} Rxc3 {[%emt 0:01:03]} 27. Qxc3 {[%emt 0:01:06]} Bxd4 {[%emt 0:00:05]} 28. Qb3 {[%emt 0:00:09]} Qf2 {[%emt 0:03:39]} 29. Ra2 {[%emt 0:09:44]} Qg1+ {[%emt 0:00:15]} 30. Kg3 {[%emt 0:00:40]} Qe1+ {[%emt 0:00:06]} 31. Kf3 {[%emt 0:01:05]} Bc4 {[%emt 0:00:22]} 0-1

[Event "1000GM Schev-G6 March 2024"]
[Site "Santa Clara"]
[Date "2024.03.10"]
[Round "3.1"]
[White "Yuan, Serena"]
[Black "Rivera, Alberto"]
[Result "1/2-1/2"]
[ECO "D77"]
[WhiteElo "1929"]
[BlackElo "2290"]
[Annotator "TA"]
[PlyCount "93"]
[EventDate "2024.03.06"]
[EventType "schev"]
[EventCountry "USA"]
[SourceTitle "playchess.com"]
[Source "ChessBase"]
[SourceQuality "1"]
[TimeControl "5400+30"]

{[%evp 16,93,22,0,0,-9,-21,-10,-2,-1,-7,-15,-14,-15,-19,-15,-22,-83,-87,-86,-81,-72,-50,-55,-58,-112,-111,-112,-108,-114,-99,-106,-79,-93,-4,-1,-1,-2,-8,-8,-8,-8,-8,-8,-8,-23,0,-29,-8,-37,-37,-38,0,-38,0,0,0,0,0,0,5,0,0,0,5,0,5,0,5,5,85,85,85,0,302,0,105,0,201,0]} 1. d4 {[%emt 0:00:03]} d5 {[%emt 0:04:56]} 2. Nf3 {[%emt 0:00:12]} Nf6 {[%emt 1:26:34]} 3. c4 {[%emt 0:00:06]} e6 {[%emt 0:00:00]} 4. g3 {[%emt 0:00:05]} g6 {[%emt 0:00:00]} 5. Bg2 {[%emt 0:00:07]} Bg7 {[%emt 0:00:00]} 6. O-O {[%emt 0:00:05]} O-O {[%emt 0:00:00]} 7. Qc2 {[%emt 0:03:11]} c6 {[%emt 0:00:00]} 8. Nbd2 {[%emt 0:01:18]} Nbd7 {[%emt 0:00:00]} 9. Rd1 {[%emt 0:01:33]} Qe7 {[%emt 0:00:00]} 10. e4 {[%emt 0:03:04]} dxe4 {[%emt 0:00:00]} 11. Nxe4 {[%emt 0:00:14]} Nxe4 {[%emt 0:00:00] The position is equal.} 12. Qxe4 {[%emt 0:00:11]} e5 {[%emt 0:00:00]} 13. dxe5 {[%emt 0:03:52]} Nxe5 {[%emt 0:00:00]} 14. Nxe5 {[%emt 0:01:53]} Qxe5 {[%emt 0:00:00]} 15. Qxe5 {[%emt 0:03:15]} Bxe5 {[%emt 0:00:00]} 16. Be4 {[%emt 0:02:46]} (16. Bh6 $11 Re8 17. Rd2) 16... Be6 $17 {[%emt 0:00:00]} 17. c5 {[%emt 0:00:59]} Rfd8 {[%emt 0:00:00]} 18. Bg5 {[%emt 0:03:55]} Rxd1+ {[%emt 0:00:00]} 19. Rxd1 {[%emt 0:00:09]} Bxa2 {[%emt 0:00:00][%cal Oa7a5]} ({Don't play} 19... Bxb2 20. Rb1 Bd4 21. Rxb7 $11) 20. Rd7 {[%emt 0:02:38]} (20. b3 $1 $15) 20... Rb8 $1 {[%emt 0:00:00]} ({But not} 20... Bxb2 $6 21. Rxb7 Bd4 22. Bxc6 $11) 21. b4 {[%emt 0:02:03]} Be6 {[%emt 0:00:00]} 22. Rd3 {[%emt 0:03:21]} f6 {[%emt 0:00:00]} 23. Be3 {[%emt 0:04:06]} a6 {[%emt 0:00:00]} 24. Bd4 {[%emt 0:02:14]} Rd8 {[%emt 0:00:00]} (24... Bxd4 $17 25. Rxd4 Re8) 25. Bxe5 $11 {[%emt 0:00:24]} Rxd3 {[%emt 0:00:00]} 26. Bxd3 {[%emt 0:00:01]} fxe5 {[%emt 0:00:00][%mdl 4096] Endgame. KB-KB} 27. f3 {[%emt 0:00:44]} Kg7 {[%emt 0:05:53]} 28. Kf2 {[%emt 0:02:17]} Kf6 {[%emt 0:00:27]} 29. Ke3 {[%emt 0:00:16]} Bd5 {[%emt 0:01:08]} 30. Bc2 {[%emt 0:00:45]} Be6 {[%emt 0:01:09]} 31. Bd3 {[%emt 0:00:24]} Ke7 {[%emt 0:02:00]} 32. Be2 {[%emt 0:01:36]} Bd5 {[%emt 0:01:16]} 33. Bd3 {[%emt 0:02:22]} Kf6 {[%emt 0:00:43]} 34. Bc2 {[%emt 0:00:44]} h5 {[%emt 0:02:07]} 35. h4 {[%emt 0:02:51]} Be6 {[%emt 0:00:34]} 36. Bd3 {[%emt 0:00:47]} Bf5 {[%emt 0:00:21]} 37. Bc4 {[%emt 0:00:17]} Bb1 {[%emt 0:01:14]} 38. Bb3 {[%emt 0:01:29]} Bf5 {[%emt 0:00:26]} 39. Bc4 {[%emt 0:00:14]} Ke7 {[%emt 0:00:32]} 40. Bb3 {[%emt 0:02:01]} Bb1 {[%emt 0:00:25]} 41. Bc4 {[%emt 0:00:53]} Kf6 {[%emt 0:00:18]} 42. g4 {[%emt 0:03:12]} hxg4 {[%emt 0:00:49]} (42... Bc2 $11 {keeps the balance.}) 43. fxg4 $16 {[%emt 0:00:03] Black must now prevent h5.} Bc2 {[%emt 0:00:14]} 44. Be2 {[%emt 0:02:38] Against Bd1} (44. h5 $1 $16) 44... Bb1 {[%emt 0:00:37][%mdl 8192]} (44... g5 $11 {and Black has nothing to worry.} 45. h5 Bb3) 45. Bc4 $2 {[%emt 0:01:12]} (45. h5 $1 $18 {[%cal Rh5h6] is the precise move to win.}) 45... Bc2 {[%emt 0:00:18] [#]} 46. Be2 {[%emt 0:00:24]} (46. h5 $1 $16) 46... Bb1 $18 {[%emt 0:00:42] [#]} 47. Bc4 $2 {[%emt 0:00:18] Weighted Error Value: White=0.25 (precise) /Black=0.30.  Loses game:     	---       	Black=1      Missed win:     	White=2     	---        Mistake:       	White=4     	Black=2      Inaccurate:     	White=1     	Black=1      OK:         	White=14    	Black=12     Best:        	White=1     	Black=2      Strong:       	---       	Black=1} ({White has to play} 47. h5 $1 $18) 1/2-1/2

[Event "1000GM Schev-G6 March 2024"]
[Site "Santa Clara"]
[Date "2024.03.10"]
[Round "3.2"]
[White "Wu, Jayden"]
[Black "Lorenzana, Wilson Estuardo"]
[Result "1/2-1/2"]
[ECO "B41"]
[WhiteElo "1909"]
[BlackElo "2074"]
[Annotator "RC"]
[PlyCount "77"]
[EventDate "2024.03.06"]
[EventType "schev"]
[EventCountry "USA"]
[SourceTitle "playchess.com"]
[Source "ChessBase"]
[SourceQuality "1"]
[TimeControl "5400+30"]

1. e4 {[%emt 0:01:21]} c5 {[%emt 0:00:08]} 2. Nf3 {[%emt 0:00:10]} e6 {[%emt 0:00:05]} 3. d4 {[%emt 0:00:06]} cxd4 {[%emt 0:00:05]} 4. Nxd4 {[%emt 0:00:03]} a6 {[%emt 0:00:05]} 5. g3 {[%emt 0:00:05]} Qc7 {[%emt 0:00:16]} 6. Bg2 {[%emt 0:00:19]} Nc6 {[%emt 0:00:05]} 7. Be3 {[%emt 0:02:57]} Nf6 {[%emt 0:01:47]} 8. O-O {[%emt 0:01:22]} Be7 {[%emt 0:00:26]} 9. Nxc6 {[%emt 0:05:58]} dxc6 {[%emt 0:04:12]} 10. a4 {[%emt 0:14:08]} e5 {[%emt 0:02:08]} 11. a5 {[%emt 0:02:51]} Bg4 {[%emt 0:00:12]} 12. Qc1 {[%emt 0:00:38]} Nd7 {[%emt 0:00:32]} 13. Nd2 {[%emt 0:03:28]} O-O {[%emt 0:02:20]} 14. c3 {[%emt 0:07:09]} Bc5 {[%emt 0:05:42]} 15. Nb3 {[%emt 0:03:41]} Bxe3 {[%emt 0:00:06]} 16. Qxe3 {[%emt 0:00:03]} Be6 {[%emt 0:00:08]} 17. Nc5 {[%emt 0:00:21]} Nxc5 {[%emt 0:00:02]} 18. Qxc5 {[%emt 0:00:06]} Rad8 {[%emt 0:00:11]} 19. Rfd1 {[%emt 0:00:51]} Bb3 {[%emt 0:00:13]} 20. Rxd8 {[%emt 0:01:23]} Rxd8 {[%emt 0:00:01]} 21. Qb4 {[%emt 0:05:17]} Bc2 {[%emt 0:02:55]} 22. Qc5 {[%emt 0:03:05]} Rd2 {[%emt 0:14:12]} 23. b4 {[%emt 0:03:56]} Qd6 {[%emt 0:15:59]} 24. Qa7 {[%emt 0:09:25]} Qe7 {[%emt 0:00:20]} 25. h4 {[%emt 0:03:57]} g6 {[%emt 0:01:39]} 26. Qe3 {[%emt 0:01:50]} Qd8 {[%emt 0:04:37]} 27. Qc5 {[%emt 0:03:24]} Qd6 {[%emt 0:00:07]} 28. Qxd6 {[%emt 0:02:16]} Rxd6 {[%emt 0:00:02]} 29. Rc1 {[%emt 0:00:54]} Rd2 {[%emt 0:04:46]} 30. Bf3 {[%emt 0:10:17]} Kf8 {[%emt 0:02:48]} 31. Kf1 {[%emt 0:01:11]} Bb3 {[%emt 0:00:31]} 32. Ke1 {[%emt 0:02:03]} Rb2 {[%emt 0:00:29]} 33. Bd1 {[%emt 0:06:44]} Be6 {[%emt 0:03:24]} 34. Rc2 {[%emt 0:00:31]} Rb1 {[%emt 0:00:02]} 35. Kd2 {[%emt 0:00:36]} c5 {[%emt 0:09:09]} 36. Rc1 {[%emt 0:03:01]} Rb2+ {[%emt 0:00:05]} 37. Rc2 {[%emt 0:00:03]} Rb1 {[%emt 0:00:14]} 38. Rc1 {[%emt 0:00:06]} Rb2+ {[%emt 0:00:09]} 39. Rc2 {[%emt 0:00:04]} 1/2-1/2

[Event "1000GM Schev-G6 March 2024"]
[Site "Santa Clara"]
[Date "2024.03.10"]
[Round "3.3"]
[White "Garduno Huerta, Joshua Emiliano"]
[Black "Qi, Jenny"]
[Result "1-0"]
[ECO "A50"]
[WhiteElo "1941"]
[BlackElo "1764"]
[Annotator "RC"]
[PlyCount "115"]
[EventDate "2024.03.06"]
[EventType "schev"]
[EventCountry "USA"]
[SourceTitle "playchess.com"]
[Source "ChessBase"]
[SourceQuality "1"]
[TimeControl "5400+30"]

1. d4 {[%emt 0:00:01]} Nf6 {[%emt 0:00:15]} 2. c4 {[%emt 0:00:08]} Nc6 {[%emt 0:00:21]} 3. Nc3 {[%emt 0:00:27]} e5 {[%emt 0:00:19]} 4. d5 {[%emt 0:01:09]} Ne7 {[%emt 0:00:14]} 5. e4 {[%emt 0:00:07]} Ng6 {[%emt 0:00:23]} 6. Bd3 {[%emt 0:04:35]} Bc5 {[%emt 0:01:01]} 7. Nge2 {[%emt 0:00:20]} Ng4 {[%emt 0:00:23]} 8. Rf1 {[%emt 0:04:14]} Nxh2 {[%emt 0:16:16]} 9. Rh1 {[%emt 0:01:32]} Ng4 {[%emt 0:00:49]} 10. Rf1 {[%emt 0:00:38]} Nh4 {[%emt 0:02:05]} 11. Kd2 {[%emt 0:06:34]} Nxf2 {[%emt 0:04:40]} 12. Qa4 {[%emt 0:02:56]} Nxg2 {[%emt 0:01:24]} 13. b4 {[%emt 0:01:18]} Qg5+ {[%emt 0:06:24]} 14. Kc2 {[%emt 0:00:27]} Ne3+ {[%emt 0:02:13]} 15. Bxe3 {[%emt 0:04:11]} Qxe3 {[%emt 0:01:11]} 16. Rxf2 {[%emt 0:00:36]} Qxf2 {[%emt 0:01:17]} 17. bxc5 {[%emt 0:00:06]} Qxc5 {[%emt 0:01:33]} 18. Ng3 {[%emt 0:04:51]} g6 {[%emt 0:04:14]} 19. Rf1 {[%emt 0:00:48]} O-O {[%emt 0:00:30]} 20. Kd2 {[%emt 0:01:06]} Qe7 {[%emt 0:00:27]} 21. Rg1 {[%emt 0:01:21]} d6 {[%emt 0:01:25]} 22. Qd1 {[%emt 0:00:22]} Kh8 {[%emt 0:02:53]} 23. Qf3 {[%emt 0:01:39]} Qg5+ {[%emt 0:04:03]} 24. Kc2 {[%emt 0:00:56]} f5 {[%emt 0:10:25]} 25. exf5 {[%emt 0:00:07]} Bxf5 {[%emt 0:00:18]} 26. Bxf5 {[%emt 0:01:20]} Rxf5 {[%emt 0:00:48]} 27. Nxf5 {[%emt 0:00:28]} Qxg1 {[%emt 0:00:43]} 28. Ng3 {[%emt 0:03:27]} Qh2+ {[%emt 0:00:38]} 29. Kd3 {[%emt 0:00:49]} Qh6 {[%emt 0:37:48]} 30. Qf6+ {[%emt 0:00:17]} Qg7 {[%emt 0:00:00]} 31. Qxg7+ {[%emt 0:00:07]} Kxg7 {[%emt 0:00:00]} 32. Nb5 {[%emt 0:00:05]} Rf8 {[%emt 0:00:00]} 33. Ne4 {[%emt 0:00:21]} Rf3+ {[%emt 0:00:00]} 34. Ke2 {[%emt 0:00:12]} Rf4 {[%emt 0:00:00]} 35. Ke3 {[%emt 0:00:08]} Rxe4+ {[%emt 0:00:00]} 36. Kxe4 {[%emt 0:00:12]} h5 {[%emt 0:00:00]} 37. Nxc7 {[%emt 0:00:32]} Kf6 {[%emt 0:00:00]} 38. Nb5 {[%emt 0:02:34]} Ke7 {[%emt 0:00:00]} 39. Nxa7 {[%emt 0:28:21]} h4 {[%emt 0:00:00]} 40. Kf3 {[%emt 0:01:08]} g5 {[%emt 0:00:00]} 41. Nb5 {[%emt 0:00:54]} h3 {[%emt 0:03:13]} 42. Nc3 {[%emt 0:00:31]} g4+ {[%emt 0:01:18]} 43. Kg3 {[%emt 0:00:08]} Kd7 {[%emt 0:00:25]} 44. Ne4 {[%emt 0:00:30]} Kc7 {[%emt 0:00:33]} 45. a3 {[%emt 0:07:29]} Kd7 {[%emt 0:01:16]} 46. a4 {[%emt 0:00:57]} Kc7 {[%emt 0:00:48]} 47. a5 {[%emt 0:00:11]} Kd7 {[%emt 0:00:05]} 48. Nf6+ {[%emt 0:00:37]} Kc7 {[%emt 0:00:17]} 49. Nxg4 {[%emt 0:00:42]} b6 {[%emt 0:01:07]} 50. a6 {[%emt 0:00:09]} Kb8 {[%emt 0:00:03]} 51. Nf2 {[%emt 0:00:20]} Ka7 {[%emt 0:01:01]} 52. Ne4 {[%emt 0:00:07]} Kxa6 {[%emt 0:00:23]} 53. Nxd6 {[%emt 0:00:08]} Ka5 {[%emt 0:00:36]} 54. Ne4 {[%emt 0:00:17]} Ka6 {[%emt 0:00:12]} 55. Kxh3 {[%emt 0:00:13]} b5 {[%emt 0:00:21]} 56. d6 {[%emt 0:00:38]} Kb6 {[%emt 0:00:06]} 57. cxb5 {[%emt 0:00:06]} Kb7 {[%emt 0:00:03]} 58. Kg4 {[%emt 0:00:07]} 1-0

[Event "1000GM Schev-G6 March 2024"]
[Site "Santa Clara"]
[Date "2024.03.10"]
[Round "3.4"]
[White "Monroy G., Nataly A."]
[Black "Zhuge, Katherine"]
[Result "1-0"]
[ECO "E05"]
[WhiteElo "1925"]
[BlackElo "1798"]
[Annotator "RC"]
[PlyCount "109"]
[EventDate "2024.03.06"]
[EventType "schev"]
[EventCountry "USA"]
[SourceTitle "playchess.com"]
[Source "ChessBase"]
[SourceQuality "1"]
[TimeControl "5400+30"]

1. d4 {[%emt 0:00:02]} d5 {[%emt 0:00:04]} 2. Nf3 {[%emt 0:00:10]} Nf6 {[%emt 0:00:22]} 3. c4 {[%emt 0:00:34]} e6 {[%emt 0:01:02]} 4. g3 {[%emt 0:00:12]} Be7 {[%emt 0:01:24]} 5. Bg2 {[%emt 0:00:27]} O-O {[%emt 0:02:10]} 6. O-O {[%emt 0:00:11]} dxc4 {[%emt 0:00:25]} 7. Qc2 {[%emt 0:02:16]} a6 {[%emt 0:00:08]} 8. a4 {[%emt 0:00:46]} Bd7 {[%emt 0:02:17]} 9. Ne5 {[%emt 0:00:47]} Bc6 {[%emt 0:09:02]} 10. Nxc6 {[%emt 0:05:41]} Nxc6 {[%emt 0:00:07]} 11. e3 {[%emt 1:24:54]} Nd5 {[%emt 0:13:06]} 12. Bd2 {[%emt 0:00:00]} Rb8 {[%emt 0:15:41]} 13. Qxc4 {[%emt 0:00:00]} Qd7 {[%emt 0:00:21]} 14. Qe2 {[%emt 0:00:00]} Ncb4 {[%emt 0:09:33]} 15. Nc3 {[%emt 0:00:00]} c5 {[%emt 0:06:33]} 16. Nxd5 {[%emt 0:00:00]} Nxd5 {[%emt 0:36:15]} 17. dxc5 {[%emt 0:00:00]} Bxc5 {[%emt 0:00:00]} 18. Rfd1 {[%emt 0:00:00]} Qe7 {[%emt 0:00:00]} 19. Rac1 {[%emt 0:00:00]} Rfc8 {[%emt 0:00:00]} 20. Bxd5 {[%emt 0:00:00]} exd5 {[%emt 0:00:00]} 21. Qg4 {[%emt 0:00:00]} Qe6 {[%emt 0:00:00]} 22. Qf3 {[%emt 0:00:00]} Qe4 {[%emt 0:00:00]} 23. Qxe4 {[%emt 0:00:00]} dxe4 {[%emt 0:00:00]} 24. Rc4 {[%emt 0:00:00]} f5 {[%emt 0:00:00]} 25. Rdc1 {[%emt 0:00:00]} Rd8 {[%emt 0:00:00]} 26. Ba5 {[%emt 0:00:00]} b6 {[%emt 0:00:00]} 27. Rxc5 {[%emt 0:00:00]} bxa5 {[%emt 0:00:00]} 28. Rxa5 {[%emt 0:00:00]} Rxb2 {[%emt 0:00:00]} 29. Rxf5 {[%emt 0:00:00]} Rb4 {[%emt 0:00:00]} 30. a5 {[%emt 0:00:00]} Rb5 {[%emt 0:00:00]} 31. Rxb5 {[%emt 0:00:00]} axb5 {[%emt 0:00:00]} 32. Rb1 {[%emt 0:00:00]} Rb8 {[%emt 0:00:00]} 33. a6 {[%emt 0:00:00]} Ra8 {[%emt 0:00:00]} 34. Rxb5 {[%emt 0:00:00]} Rxa6 {[%emt 0:00:00]} 35. Rb7 {[%emt 0:00:00]} Rc6 {[%emt 0:00:00]} 36. Kg2 {[%emt 0:00:00]} Ra6 {[%emt 0:00:00]} 37. Rc7 {[%emt 0:00:00]} Rb6 {[%emt 0:00:00]} 38. g4 {[%emt 0:00:00]} Ra6 {[%emt 0:01:36]} 39. h4 {[%emt 0:00:00]} Rb6 {[%emt 0:00:52]} 40. Kg3 {[%emt 0:00:00]} Ra6 {[%emt 0:00:51]} 41. g5 {[%emt 0:00:00]} Ra8 {[%emt 0:01:46]} 42. Re7 {[%emt 0:00:00]} Ra4 {[%emt 0:00:08]} 43. Re5 {[%emt 0:00:00]} Rb4 {[%emt 0:00:32]} 44. Rf5 {[%emt 0:00:00]} Rb2 {[%emt 0:00:09]} 45. h5 {[%emt 0:00:00]} Rc2 {[%emt 0:02:18]} 46. Rf4 {[%emt 0:00:00]} Rb2 {[%emt 0:00:39]} 47. Rxe4 {[%emt 0:00:00]} Kf7 {[%emt 0:01:20]} 48. Ra4 {[%emt 0:00:00]} Rb1 {[%emt 0:00:49]} 49. Ra7+ {[%emt 0:00:00]} Kf8 {[%emt 0:00:06]} 50. f4 {[%emt 0:00:00]} Re1 {[%emt 0:02:01]} 51. Kf3 {[%emt 0:00:00]} Rh1 {[%emt 0:00:27]} 52. h6 {[%emt 0:00:00]} gxh6 {[%emt 0:00:52]} 53. Rxh7 {[%emt 0:00:00]} h5 {[%emt 0:00:24]} 54. Ke4 {[%emt 0:00:00]} h4 {[%emt 0:00:38]} 55. Kf5 {[%emt 0:00:00]} 1-0

[Event "1000GM Schev-G6 March 2024"]
[Site "Santa Clara"]
[Date "2024.03.10"]
[Round "3.5"]
[White "Penagalapati, Anvitha"]
[Black "Gonzalez Zharikov, Andrey"]
[Result "0-1"]
[ECO "B12"]
[WhiteElo "1642"]
[BlackElo "1993"]
[Annotator "RC"]
[PlyCount "44"]
[EventDate "2024.03.06"]
[EventType "schev"]
[EventCountry "USA"]
[SourceTitle "playchess.com"]
[Source "ChessBase"]
[SourceQuality "1"]
[TimeControl "5400+30"]

1. e4 {[%emt 0:00:02]} c6 {[%emt 0:00:09]} 2. d4 {[%emt 0:00:03]} d5 {[%emt 0:00:06]} 3. e5 {[%emt 0:00:03]} Bf5 {[%emt 0:00:14]} 4. g4 {[%emt 0:00:08]} Bd7 {[%emt 0:00:10]} 5. Nh3 {[%emt 0:00:24]} Qc8 {[%emt 0:06:41]} 6. f3 {[%emt 0:00:37]} h5 {[%emt 0:03:15]} 7. Nf2 {[%emt 0:00:59]} c5 {[%emt 0:05:52]} 8. Nc3 {[%emt 0:01:44]} e6 {[%emt 0:04:53]} 9. Be3 {[%emt 0:05:34]} cxd4 {[%emt 0:08:24]} 10. Bxd4 {[%emt 0:04:21]} a6 {[%emt 0:02:47]} 11. Nd3 {[%emt 0:08:06]} Nc6 {[%emt 0:03:57]} 12. Bf2 {[%emt 0:03:20]} Qc7 {[%emt 0:03:23]} 13. Qe2 {[%emt 0:04:18]} Nge7 {[%emt 0:02:32]} 14. Bg3 {[%emt 0:10:45]} d4 {[%emt 0:04:46]} 15. Ne4 {[%emt 0:02:31]} Nd5 {[%emt 0:00:46]} 16. Nd2 {[%emt 0:09:42]} Ne3 {[%emt 0:03:53]} 17. Rc1 {[%emt 0:01:35]} Nb4 {[%emt 0:07:21]} 18. Nxb4 {[%emt 0:01:13]} Bxb4 {[%emt 0:00:02]} 19. c4 {[%emt 0:05:06]} dxc3 {[%emt 0:04:11]} 20. Kf2 {[%emt 0:09:27]} Bb5 {[%emt 0:05:07]} 21. Nc4 {[%emt 0:08:12]} Bxc4 {[%emt 0:01:40]} 22. Qe1 {[%emt 0:02:12]} Nxf1 {[%emt 0:00:09]} 0-1